bitfinex-derivatives/quotes_ETHF0:USTF0_20250317
["timestamp","ask_amount","ask_price","bid_price","bid_amount"]
[1742222528266,2.41638,1904.4,1904.3,1.43786658]
[1742222529469,2.41638,1904.4,1904.3,2.48819658]
[1742222529674,1.3661,1904.4,1904.3,2.48819658]
[1742222529873,1.05026,1904.5,1904.4,1.05028]
[1742222530170,2.36067,1904.6,1904.5,1.3976]
[1742222531773,1.3105,1904.6,1904.5,2.44782]
[1742222531974,1.05015,1904.7,1904.6,1.05016]
[1742222532174,1.05015,1904.7,1904.6,7.00296]
[1742222532768,1.05015,1904.7,1904.6,5.9528]
[1742222532968,1.05015,1904.7,1904.6,3.2078]
[1742222533575,2.48275,1904.7,1904.6,3.2078]
[1742222535171,1.4326,1904.7,1904.6,3.2078]
[1742222535375,2.48271,1904.7,1904.6,3.2078]
[1742222537171,1.4326,1904.7,1904.6,5.69497]
[1742222537376,3.758,1905.1,1904.8,1.05004]
[1742222537576,2.43369,1905.0,1904.9,4.6448]
[1742222538075,1.3837,1905.0,1904.9,4.6448]
[1742222538276,2.43365,1905.0,1904.9,4.6448]
[1742222540180,1.05006,1904.8,1904.7,4.6404]
[1742222540984,2.39231,1904.9,1904.7,6.009]
[1742222541182,1.3423,1904.9,1904.8,2.41866]
[1742222541480,4.4433,1905.2,1904.8,1.3686]
[1742222541681,1.3589,1905.1,1904.9,2.3636]
[1742222541982,2.40879,1905.1,1905.0,4.5214]
[1742222543279,1.3589,1905.1,1905.0,5.57135]
[1742222544382,2.40879,1905.1,1905.0,5.57135]
[1742222544774,1.3589,1905.1,1905.0,5.57135]
[1742222545076,2.40879,1905.1,1905.0,4.5214]
[1742222545276,2.40879,1905.1,1904.9,6.0]
[1742222545277,1.04995,1905.0,1904.9,6.0]
[1742222545486,3.09535,1905.0,1904.9,6.0]
[1742222545670,3.86794805,1905.0,1904.9,6.0]
[1742222545979,3.77985,1905.0,1904.9,6.0]
[1742222546690,3.77985,1905.0,1904.6,3.2078]
[1742222546691,1.05011,1904.7,1904.6,3.2078]
[1742222546978,4.79011,1904.7,1904.6,3.2078]
[1742222547485,6.11512,1904.9,1904.6,3.2078]
[1742222547686,1.05006,1904.8,1904.7,1.3519]
[1742222547879,1.4098,1904.8,1904.7,2.40201]
[1742222548073,1.4098,1904.8,1904.7,3.09011]
[1742222548383,1.4098,1904.8,1904.7,3.77891]
[1742222549879,1.77229,1905.0,1904.7,3.77891]
[1742222550079,2.4598,1904.9,1904.8,4.5597]
[1742222550672,1.4098,1904.9,1904.5,3.2078]
[1742222550874,11.74235556,1904.8,1904.3,4.26599658]
[1742222551070,1.05025,1904.5,1904.4,1.3476]
[1742222551379,1.05025,1904.5,1904.4,4.5554]
[1742222553480,2.42495,1904.5,1904.4,4.5554]
[1742222554281,1.3747,1904.5,1904.4,5.60568]
[1742222554480,2.42492,1904.5,1904.4,4.5554]
[1742222555585,0.7086,1904.8,1904.4,4.5554]
[1742222555779,2.48971,1904.7,1904.6,3.2078]
[1742222555992,2.48971,1904.7,1904.6,6.0145]
[1742222556179,2.48971,1904.7,1904.6,3.2078]
[1742222556776,1.05028,1904.4,1904.3,6.00786658]
[1742222556989,4.77626,1904.5,1904.3,6.00786658]
[1742222557282,2.46868,1904.4,1904.3,6.00786658]
[1742222557587,2.46868,1904.4,1904.3,10.63176658]
[1742222557773,2.46868,1904.4,1904.3,7.42396658]
[1742222557973,2.46868,1904.4,1904.3,6.00786658]
[1742222558583,2.46868,1904.4,1904.3,7.42396658]
[1742222558783,3.726,1904.5,1904.3,7.42396658]
[1742222558990,2.46858,1904.6,1904.4,5.67416]
[1742222559185,5.1371,1904.8,1904.5,1.4161]
[1742222559385,1.05015,1904.7,1904.6,3.2078]
[1742222559583,0.6947,1904.8,1904.7,1.4161]
[1742222559884,3.2078,1905.1,1904.7,1.4161]
[1742222560189,1.05006,1904.8,1904.7,2.1314]
[1742222560391,1.05002,1904.9,1904.7,3.18149]
[1742222560581,1.05002,1904.9,1904.8,1.316]
[1742222561679,0.00786658,1905.4,1905.3,1.04978]
[1742222562077,1.05760658,1905.4,1905.3,2.0313]
[1742222564883,1.05760658,1905.4,1905.0,11.4873]
[1742222564884,1.04989,1905.1,1905.0,13.6452]
[1742222565088,2.63222658,1905.4,1905.0,9.9102]
[1742222565089,1.04988,1905.2,1905.0,9.9102]
[1742222565294,1.04988,1905.2,1905.1,1.3353]
[1742222565495,1.04984,1905.2,1905.1,1.3353]
[1742222566195,1.04989,1905.1,1905.0,10.6123]
[1742222566992,1.04989,1905.1,1905.0,9.2078]
[1742222567195,1.05,1904.9,1904.8,36.0608]
[1742222567396,1.05,1904.9,1904.8,3.2078]
[1742222568284,1.05,1904.9,1904.7,2.8525]
[1742222568285,1.05004,1904.9,1904.7,3.90261]
[1742222568488,1.05004,1904.9,1904.8,1.4492]
[1742222568791,4.77792,1905.1,1904.8,4.657]
[1742222568992,4.77793,1905.1,1905.0,3.2078]
[1742222569193,1.04993,1905.1,1905.0,3.2078]
[1742222569894,1.04986,1905.2,1905.0,4.25773]
[1742222570091,1.04986,1905.2,1905.1,1.3112]
[1742222570481,1.04986,1905.2,1905.1,1.9811]
[1742222571289,4.3808,1905.3,1905.0,3.2078]
[1742222571491,1.04993,1905.1,1905.0,4.519]
[1742222571796,1.04993,1905.1,1905.0,3.2078]
[1742222572195,1.04995,1905.0,1904.9,1.383]
[1742222572995,1.05,1904.9,1904.8,9.8777]
[1742222573196,1.3175,1904.9,1904.8,6.31076]
[1742222573495,4.76893,1905.1,1904.9,1.05]
[1742222573697,4.76893,1905.1,1905.0,4.5908]
[1742222573891,1.05,1904.9,1904.8,3.8777]
[1742222574092,1.04999,1905.0,1904.8,5.2607]
[1742222574398,1.04991,1905.1,1905.0,1.04995]
[1742222574595,1.04991,1905.1,1905.0,4.25775]
[1742222574795,1.04991,1905.1,1905.0,3.2078]
[1742222575499,1.04989,1905.1,1905.0,3.2078]
[1742222576096,1.04989,1905.1,1905.0,4.5987]
[1742222578396,1.04989,1905.1,1905.0,3.2078]
[1742222578593,1.05,1904.9,1904.8,3.8777]
[1742222578799,1.04996,1905.0,1904.8,10.00262]
[1742222578992,1.04993,1905.1,1904.9,1.3629]
[1742222579192,1.04989,1905.1,1905.0,3.2078]
[1742222579796,1.04989,1905.1,1905.0,4.5707]
[1742222580497,4.76182,1905.3,1905.1,1.04985]
[1742222580802,1.04982,1905.3,1905.2,5.2729]
[1742222581104,1.04982,1905.3,1905.2,3.2078]
[1742222581689,1.04982,1905.3,1905.2,4.6156]
[1742222582787,0.00786658,1905.4,1905.2,4.6156]
[1742222582993,1.05759658,1905.4,1905.3,1.4078]
[1742222583894,5.87,1906.3,1905.3,13.6088]
[1742222584095,1.04948,1905.9,1905.7,4.25733]
[1742222584302,1.04948,1905.9,1905.8,1.3839]
[1742222584595,0.6548,1906.4,1905.8,12.19946716]
[1742222584802,1.04938,1906.1,1906.0,3.2078]
[1742222584994,0.6592,1906.3,1906.0,4.5917]
[1742222585192,0.6592,1906.3,1906.0,3.2078]
[1742222585193,1.04934,1906.1,1906.0,3.2078]
[1742222585594,1.05719658,1906.2,1906.0,4.2572]
[1742222585798,1.05719658,1906.2,1906.0,3.2078]
[1742222586002,1.05719658,1906.2,1906.0,4.2572]
[1742222586398,1.05719658,1906.2,1906.0,3.2078]
[1742222586598,1.04934,1906.1,1906.0,3.2078]
[1742222586995,0.00786658,1906.2,1906.0,3.2078]
[1742222587195,6.9108,1906.7,1906.0,6.9108]
[1742222587402,0.74681772,1906.6,1906.5,3.2078]
[1742222587608,1.04898,1906.8,1906.5,3.2078]
[1742222587809,41.4588,1906.9,1906.7,4.25679]
[1742222588001,3.711,1907.1,1906.8,1.04896]
[1742222588204,4.3708,1907.3,1906.9,4.25666]
[1742222588397,0.00786658,1907.1,1906.9,3.2078]
[1742222588597,0.00786658,1907.1,1906.9,3.21566658]
[1742222589012,3.2078,1907.8,1906.9,9.21566658]
[1742222589308,1.04868,1907.3,1907.2,3.2078]
[1742222589508,1.04877,1907.2,1907.0,3.2078]
[1742222590008,40.8,1907.4,1907.0,3.2078]
[1742222590212,40.8,1907.4,1907.2,3.2078]
[1742222590504,41.8538844,1907.4,1907.2,3.2078]
[1742222590708,41.8538744,1907.4,1907.2,3.2078]
[1742222591014,1.0538744,1907.4,1907.2,3.2078]
[1742222591702,0.0052444,1907.4,1907.2,3.2078]
[1742222591905,0.0052444,1907.4,1907.2,4.25652]
[1742222592101,1.04879,1907.1,1907.0,1.3812]
[1742222592408,3.723,1907.1,1906.9,3.21566658]
[1742222592602,2.50145,1907.0,1906.9,3.21566658]
[1742222592912,43.30145,1907.0,1906.9,0.00786658]
[1742222593103,45.50189933,1907.0,1906.4,3.2078]
[1742222593311,1.04912,1906.5,1906.4,3.2078]
[1742222593504,1.04923,1906.3,1906.2,3.2078]
[1742222593809,1.04923,1906.3,1906.0,10.3802]
[1742222593810,1.04934,1906.1,1906.0,3.863]
[1742222594008,41.84934,1906.1,1905.9,29.102]
[1742222594309,2.4654,1906.0,1905.8,7.62976658]
[1742222594509,1.416,1906.0,1905.8,3.90476658]
[1742222594697,1.416,1906.0,1905.8,4.95427658]
[1742222594902,1.416,1906.0,1905.8,3.90476658]
[1742222595207,0.00786658,1906.2,1905.8,7.62676658]
[1742222595403,0.00786658,1906.2,1906.1,3.2078]
[1742222595404,2.47315658,1906.2,1906.1,3.2078]
[1742222596311,1.42386658,1906.2,1905.9,3.2078]
[1742222596705,1.42386658,1906.2,1905.9,4.25724]
[1742222596908,1.42386658,1906.2,1906.0,1.04938]
[1742222597209,2.47315658,1906.2,1906.1,3.2078]
[1742222598112,2.47315658,1906.2,1905.8,0.69696658]
[1742222598113,1.04945,1905.9,1905.8,0.69696658]
[1742222598306,1.04945,1905.9,1905.8,0.00786658]
[1742222598811,1.04942,1906.0,1905.8,0.00786658]
[1742222599111,1.04942,1906.0,1905.9,3.2078]
[1742222599714,1.04934,1906.1,1905.9,3.2078]
[1742222599908,1.3976,1906.0,1905.9,4.25725]
[1742222600111,0.00786658,1906.2,1905.9,3.2078]
[1742222600317,2.45478658,1906.2,1906.1,3.2078]
[1742222600708,1.40546658,1906.2,1906.1,3.2078]
[1742222601219,2.45475658,1906.2,1906.1,3.2078]
[1742222602713,1.40546658,1906.2,1906.1,3.2078]
[1742222602916,2.45475658,1906.2,1906.1,3.2078]
[1742222603217,1.40546658,1906.2,1906.1,3.2078]
[1742222603412,2.45475658,1906.2,1906.1,3.2078]
[1742222603717,1.0494,1906.0,1905.9,6.0]
[1742222604118,1.04945,1905.9,1905.8,3.21566658]
[1742222604320,1.04945,1905.9,1905.8,0.00786658]
[1742222604321,2.42805,1905.9,1905.8,0.00786658]
[1742222604519,6.15205,1905.9,1905.8,0.00786658]
[1742222605611,1.3786,1905.9,1905.8,1.45616658]
[1742222605814,1.3786,1905.9,1905.8,2.12236658]
[1742222606214,1.3786,1905.9,1905.8,3.17187658]
[1742222606918,1.3786,1905.9,1905.8,2.12236658]
[1742222607219,2.42805,1905.9,1905.8,2.12236658]
[1742222607620,1.3786,1905.9,1905.8,3.17187658]
[1742222608030,1.04944,1906.0,1905.8,3.17184658]
[1742222608229,1.04944,1906.0,1905.9,4.6561]
[1742222608723,1.04944,1906.0,1905.9,3.2078]
[1742222609023,1.04945,1905.9,1905.8,6.00786658]
[1742222609620,1.04943,1906.0,1905.8,8.50016658]
[1742222609823,1.04943,1906.0,1905.9,4.6506]
[1742222610021,1.0494,1906.0,1905.9,4.6506]
[1742222610225,0.00786658,1906.2,1905.9,9.068]
[1742222610527,1.05715658,1906.2,1906.1,3.2078]
[1742222611921,1.0494,1906.0,1905.9,9.7945]
[1742222612122,1.0494,1906.0,1905.9,3.9062]
[1742222612423,1.0494,1906.0,1905.9,3.2078]
[1742222612622,1.04945,1905.9,1905.8,0.00786658]
[1742222613125,5.43353,1906.0,1905.8,0.00786658]
[1742222613325,1.04944,1906.0,1905.9,3.2078]
[1742222613522,3.72186658,1906.2,1905.9,3.2078]
[1742222613825,4.77115658,1906.2,1906.1,3.2078]
[1742222614223,1.05715658,1906.2,1906.1,3.2078]
[1742222615426,1.04934,1906.1,1906.0,6.0]
[1742222615824,1.04934,1906.1,1906.0,7.4165]
[1742222616035,1.04934,1906.1,1906.0,6.0]
[1742222616528,1.0494,1906.0,1905.9,3.2078]
[1742222616831,1.04945,1905.9,1905.8,0.00786658]
[1742222618634,40.8,1906.0,1905.8,1.05733658]
[1742222618835,1.04939,1906.1,1905.9,5.57335]
[1742222619022,1.04936,1906.1,1905.9,6.28571]
[1742222619427,3.71586658,1906.2,1905.9,6.28571]
[1742222619428,3.71586658,1906.2,1905.9,11.2363]
[1742222619726,0.00786658,1906.2,1906.1,4.25714]
[1742222620334,4.4224,1906.7,1906.1,9.2078]
[1742222620533,1.04917,1906.5,1906.4,4.25698]
[1742222620724,1.04912,1906.5,1906.4,4.25698]
[1742222621032,4.3956,1906.7,1906.4,4.25698]
[1742222621338,1.04901,1906.7,1906.6,4.25683]
[1742222621537,1.0542544,1906.7,1906.6,3.2078]
[1742222621736,0.0052444,1906.7,1906.6,4.25687]
[1742222622539,0.0052444,1906.7,1906.6,3.2078]
[1742222622737,0.0052444,1906.7,1906.6,10.25687]
[1742222622934,0.0052444,1906.7,1906.6,13.96287]
[1742222623540,1.0542544,1906.7,1906.6,13.96287]
[1742222623734,0.0052444,1906.7,1906.6,13.96287]
[1742222623932,1.0542544,1906.7,1906.6,12.9138]
[1742222624736,1.0542544,1906.7,1906.6,9.2078]
[1742222625140,1.0542544,1906.7,1906.6,6.0]
[1742222625743,0.0052444,1906.7,1906.6,7.04907]
[1742222626042,0.0052444,1906.7,1906.6,10.25687]
[1742222626545,0.0052444,1906.7,1906.6,11.63597]
[1742222627539,0.7035,1907.1,1907.0,1.04885]
[1742222627847,1.04879,1907.1,1907.0,3.2078]
[1742222628146,0.715,1907.4,1907.0,3.2078]
[1742222628445,1.04868,1907.3,1907.2,3.2078]
[1742222628837,1.4186,1907.3,1907.2,5.63674]
[1742222629036,2.46728,1907.3,1907.2,4.588]
[1742222629433,2.46728,1907.3,1907.2,3.2078]
[1742222629645,1.04874,1907.2,1907.1,0.00786658]
[1742222629832,2.39324,1907.2,1907.1,0.00786658]
[1742222630240,43.19324,1907.2,1907.1,0.00786658]
[1742222631455,42.1445,1907.2,1907.1,0.00786658]
[1742222631743,1.3445,1907.2,1907.1,2.45145658]
[1742222632340,1.3445,1907.2,1907.1,3.14175658]
[1742222632852,3.694,1907.7,1907.1,8.28696658]
[1742222633144,1.0486,1907.5,1907.4,3.2078]
[1742222633346,43.18035,1907.6,1907.4,4.25642]
[1742222633652,2.38037,1907.5,1907.4,3.2078]
[1742222633851,2.38037,1907.5,1907.4,4.6195]
[1742222634150,2.38037,1907.5,1907.4,1.4117]
[1742222634351,1.04866,1907.4,1907.2,4.25654]
[1742222634551,2.38046,1907.4,1907.2,4.6195]
[1742222634946,1.3318,1907.3,1907.2,4.6195]
[1742222635147,1.3318,1907.3,1907.2,4.25654]
[1742222635346,1.04874,1907.2,1907.1,10.39216658]
[1742222635649,1.04874,1907.2,1907.1,6.00786658]
[1742222636144,1.73734,1907.2,1907.1,6.00786658]
[1742222636340,5.43334,1907.2,1907.1,0.00786658]
[1742222637546,1.04901,1906.7,1906.6,3.2078]
[1742222637747,4.74288,1907.0,1906.7,1.04897]
[1742222637947,2.4433,1906.9,1906.8,3.2078]
[1742222638845,1.04896,1906.8,1906.7,0.00786658]
[1742222639153,2.49896,1906.8,1906.7,0.00786658]
[1742222640052,1.45,1906.8,1906.7,1.05687658]
[1742222640247,1.45,1906.8,1906.7,0.00786658]
[1742222640446,2.49896,1906.8,1906.7,0.00786658]
[1742222642746,6.18996,1906.8,1906.7,0.00786658]
[1742222643556,6.88636,1906.8,1906.7,0.00786658]
[1742222643760,5.8374,1906.8,1906.7,0.00786658]
[1742222643958,2.1464,1906.8,1906.7,0.00786658]
[1742222644168,1.45,1906.8,1906.7,0.00786658]
[1742222644460,2.49896,1906.8,1906.7,0.00786658]
[1742222644657,1.45,1906.8,1906.7,0.00786658]
[1742222644852,1.45,1906.8,1906.7,2.44987658]
[1742222645253,2.49896,1906.8,1906.7,1.40086658]
[1742222645454,2.49896,1906.8,1906.7,0.00786658]
[1742222646856,0.70426658,1907.0,1906.7,1.05687658]
[1742222647063,0.00786658,1907.0,1906.9,1.0489]
[1742222647252,0.00786658,1907.0,1906.9,2.4117]
[1742222647662,1.04866,1907.4,1907.2,1.04873]
[1742222647855,1.04866,1907.4,1907.3,3.9018]
[1742222648160,1.04863,1907.4,1907.3,3.9018]
[1742222648364,1.32,1907.5,1907.3,3.9018]
[1742222648552,2.36857,1907.5,1907.4,0.7003]
[1742222648861,1.32,1907.5,1907.4,1.74893]
[1742222649060,2.36857,1907.5,1907.4,4.3913]
[1742222649354,2.62079,1908.0,1907.4,10.3913]
[1742222649555,2.1104,1907.9,1907.6,3.2078]
[1742222649750,2.46185,1907.9,1907.8,3.2078]
[1742222650756,1.4135,1907.9,1907.8,3.2078]
[1742222650953,1.4135,1907.9,1907.8,4.25621]
[1742222651158,1.74505,1908.3,1908.0,1.04829]
[1742222651461,40.8,1908.5,1908.1,4.25603]
[1742222651665,2.43417,1908.3,1908.1,3.9021]
[1742222651852,1.386,1908.3,1908.2,1.04819]
[1742222652164,0.7037,1908.7,1908.3,1.0481]
[1742222652165,3.717,1908.7,1908.3,1.0481]
[1742222652367,1.386,1908.5,1908.4,4.25588]
[1742222652566,40.8,1908.7,1908.5,1.04801]
[1742222652756,40.8,1908.7,1908.6,1.04797]
[1742222653065,1.386,1908.7,1908.6,5.59307]
[1742222653261,1.386,1908.7,1908.6,8.2641]
[1742222653462,1.386,1908.7,1908.6,9.31207]
[1742222653865,40.8,1908.8,1908.7,1.04791]
[1742222654152,1.04776,1909.0,1908.8,1.04784]
[1742222654359,1.04776,1909.0,1908.9,1.3101]
[1742222654562,1.04776,1909.0,1908.9,4.5179]
[1742222654563,41.84776,1909.0,1908.9,4.5179]
[1742222654861,40.8,1909.0,1908.9,4.5179]
[1742222655165,1.04773,1909.1,1908.9,4.5179]
[1742222655561,1.04775,1909.0,1908.9,4.5179]
[1742222655761,41.84771,1909.1,1908.9,4.5179]
[1742222655957,1.04766,1909.2,1908.9,5.56569]
[1742222656157,3.712,1909.7,1909.1,3.2078]
[1742222656462,0.08788049,1909.6,1909.2,1.3101]
[1742222656762,1.0475,1909.5,1909.2,1.3101]
[1742222656957,0.6605,1910.0,1909.4,3.2078]
[1742222657157,1.04739,1909.7,1909.4,6.9248]
[1742222657361,3.2078,1910.4,1909.6,3.2078]
[1742222657563,0.08784357,1910.3,1909.8,3.2078]
[1742222657765,5.82532,1910.4,1909.8,3.21566658]
[1742222657766,1.04725,1909.9,1909.8,3.21566658]
[1742222658166,1.04725,1909.9,1909.8,0.00786658]
[1742222658960,1.04758,1909.3,1909.2,5.2258]
[1742222659273,1.04751,1909.5,1909.2,5.2258]
[1742222659568,1.04755,1909.4,1909.2,5.2258]
[1742222659771,1.04758,1909.3,1909.2,4.5566]
[1742222660065,40.8,1909.3,1909.2,4.5566]
[1742222660864,41.84758,1909.3,1909.2,4.5566]
[1742222661261,41.84758,1909.3,1909.2,3.2078]
[1742222661467,40.8,1909.3,1909.2,3.2078]
[1742222661772,40.8,1909.3,1909.2,8.12464]
[1742222661966,0.00786658,1909.4,1909.3,1.04758]
[1742222662168,0.00786658,1909.4,1909.3,4.78858]
[1742222662470,3.2078,1909.9,1909.3,12.241]
[1742222662671,1.04733,1909.8,1909.6,4.2552]
[1742222662870,1.04734,1909.8,1909.6,6.9508]
[1742222663067,2.61754,1910.4,1909.6,6.9508]
[1742222663068,3.2078,1910.3,1909.7,7.3692]
[1742222663261,1.047,1910.4,1910.2,1.04707]
[1742222663466,1.047,1910.4,1910.3,4.578]
[1742222663975,40.8,1910.6,1910.3,4.578]
[1742222664168,0.6787,1910.8,1910.4,1.3702]
[1742222664372,1.04693,1910.5,1910.4,1.3702]
[1742222665774,40.8,1910.7,1910.2,9.765]
[1742222665775,1.04703,1910.3,1910.2,9.765]
[1742222665968,43.41712,1910.7,1910.2,15.38707]
[1742222666277,1.047,1910.4,1910.2,9.38707]
[1742222666467,1.04703,1910.3,1910.2,3.2078]
[1742222666674,1.04703,1910.3,1910.1,6.00786658]
[1742222666675,1.04709,1910.2,1910.1,0.00786658]
[1742222667679,1.04702,1910.4,1910.2,1.04708]
[1742222667975,1.04703,1910.3,1910.2,8.3115]
[1742222668177,1.04701,1910.4,1910.2,9.35857]
[1742222668476,1.04703,1910.3,1910.2,8.3115]
[1742222668676,1.04702,1910.4,1910.2,9.35859]
[1742222669077,1.04703,1910.3,1910.2,3.2078]
[1742222669377,1.04709,1910.2,1910.1,3.77686658]
[1742222669778,1.04709,1910.2,1910.1,0.00786658]
[1742222671879,2.61718,1910.6,1910.1,5.12486658]
[1742222672079,1.04707,1910.3,1910.2,1.348]
[1742222672277,1.04709,1910.2,1910.1,3.77686658]
[1742222672478,1.04709,1910.2,1910.1,0.00786658]
[1742222673273,1.3503,1910.3,1910.1,0.00786658]
[1742222673467,1.047,1910.4,1910.2,8.02989]
[1742222673682,3.29562,1910.8,1910.3,2.45208]
[1742222673873,1.04693,1910.5,1910.4,1.4051]
[1742222674074,2.3972,1910.6,1910.4,2.45206]
[1742222674274,1.3503,1910.6,1910.4,4.6129]
[1742222674579,2.39719,1910.6,1910.5,3.786]
[1742222675075,1.3503,1910.6,1910.3,3.783]
[1742222675279,1.04698,1910.4,1910.3,3.783]
[1742222675682,1.04696,1910.5,1910.3,3.783]
[1742222675974,2.46976,1910.5,1910.4,3.2078]
[1742222676191,1.04704,1910.3,1910.1,3.21566658]
[1742222676382,1.04704,1910.3,1910.2,3.785]
[1742222676583,1.04704,1910.3,1910.2,5.1519]
[1742222677287,1.04703,1910.3,1910.2,6.19898]
[1742222677587,1.04703,1910.3,1910.2,5.1519]
[1742222678989,1.04703,1910.3,1910.2,3.785]
[1742222679291,1.04709,1910.2,1910.1,0.00786658]
[1742222679585,3.10279,1910.2,1910.1,0.00786658]
[1742222680285,7.8513451,1910.2,1909.5,0.6759]
[1742222680492,1.04753,1909.4,1909.3,12.9798]
[1742222680694,1.04764,1909.2,1909.1,4.6152]
[1742222680987,40.8,1909.5,1909.2,1.04762]
[1742222681188,1.04753,1909.4,1909.3,1.4074]
[1742222681393,2.39423,1909.4,1909.3,1.4074]
[1742222681688,2.39423,1909.4,1909.2,0.00786658]
[1742222681689,1.04758,1909.3,1909.2,0.00786658]
[1742222681881,2.45278,1909.3,1909.2,0.00786658]
[1742222683085,1.05534658,1909.5,1909.2,0.00786658]
[1742222683285,1.41306658,1909.5,1909.4,3.2078]
[1742222683592,2.46053658,1909.5,1909.4,3.2078]
[1742222683793,2.46053658,1909.5,1909.3,0.6966]
[1742222684090,1.04758,1909.3,1909.2,10.52816658]
[1742222685092,1.04758,1909.3,1909.2,9.21566658]
[1742222685993,1.41306658,1909.5,1909.2,9.21566658]
[1742222686188,1.04753,1909.4,1909.2,9.21566658]
[1742222686487,2.41828,1909.3,1909.2,9.21566658]
[1742222686693,2.41828,1909.3,1909.2,6.00786658]
[1742222686890,2.41828,1909.3,1909.2,9.21566658]
[1742222687292,2.41828,1909.3,1909.2,3.21566658]
[1742222687699,2.41828,1909.3,1909.2,0.00786658]
[1742222689490,1.0478,1908.9,1908.8,9.77]
[1742222689691,2.61917,1909.2,1908.7,10.5518]
[1742222689902,2.0792,1909.1,1908.7,10.5518]
[1742222690090,1.04784,1908.9,1908.7,10.5518]
[1742222690294,2.0792,1909.1,1908.7,10.5518]
[1742222690601,3.1269,1909.1,1908.9,3.2078]
[1742222690795,3.1269,1909.1,1909.0,1.4495]
[1742222690997,2.0792,1909.1,1909.0,1.4495]
[1742222691190,1.4048,1909.1,1909.0,2.49725]
[1742222691387,1.4048,1909.1,1909.0,3.18895]
[1742222691596,1.04762,1909.3,1909.0,3.18892]
[1742222691801,2.39775,1909.2,1909.0,2.1412]
[1742222692197,1.04769,1909.1,1909.0,2.1412]
[1742222692502,1.3501,1909.1,1909.0,3.18895]
[1742222693497,1.3501,1909.1,1909.0,2.1412]
[1742222693699,2.39779,1909.1,1909.0,2.1412]
[1742222694103,2.39779,1909.1,1909.0,0.6917]
[1742222694994,2.39779,1909.1,1908.9,14.0276]
[1742222695303,2.39779,1909.1,1908.9,15.38916]
[1742222695501,1.3501,1909.1,1908.9,14.3414]
[1742222695702,2.3978,1909.1,1908.9,15.38916]
[1742222696496,1.3501,1909.1,1908.9,8.3414]
[1742222696697,1.04775,1909.0,1908.9,8.3414]
[1742222696898,2.39783,1909.1,1908.9,9.3892]
[1742222697100,1.04775,1909.0,1908.9,8.3414]
[1742222697403,2.38085,1909.0,1908.9,4.5694]
[1742222700499,3.758,1909.4,1908.9,4.5694]
[1742222700690,1.4006,1909.2,1909.1,4.25548]
[1742222700895,1.04754,1909.4,1909.2,1.04761]
[1742222701102,2.44814,1909.4,1909.3,3.2078]
[1742222701399,2.61781,1910.2,1909.5,2.61868]
[1742222701594,2.61781,1910.2,1909.7,3.2078]
[1742222701595,1.4006,1910.0,1909.7,3.2078]
[1742222701798,1.04725,1909.9,1909.8,1.4512]
[1742222702302,1.04725,1909.9,1909.7,3.9022]
[1742222702303,1.04731,1909.8,1909.7,3.9022]
[1742222702492,1.04736,1909.7,1909.6,5.21306658]
[1742222702803,2.44796,1909.7,1909.6,3.76186658]
[1742222703008,2.44796,1909.7,1909.6,0.00786658]
[1742222704704,2.44796,1909.7,1909.6,2.49318658]
[1742222704705,1.4006,1909.7,1909.6,2.49318658]
[1742222704900,2.44796,1909.7,1909.6,1.44576658]
[1742222705106,2.44796,1909.7,1909.6,0.00786658]
[1742222707212,1.4006,1909.7,1909.6,1.05528658]
[1742222707507,0.00786658,1909.9,1909.6,11.08006658]
[1742222707708,0.00786658,1909.9,1909.8,4.25511]
[1742222707902,2.39621658,1909.9,1909.8,3.2078]
[1742222708504,1.34896658,1909.9,1909.8,4.25511]
[1742222708901,2.39621658,1909.9,1909.8,3.2078]
[1742222709111,1.34896658,1909.9,1909.8,4.25511]
[1742222709408,2.39621658,1909.9,1909.8,3.8978]
[1742222709703,2.39621658,1909.9,1909.8,4.94511]
[1742222710299,2.39621658,1909.9,1909.8,3.8978]
[1742222710503,1.7022,1910.2,1909.8,3.8978]
[1742222710705,2.41804,1910.1,1910.0,4.255]
[1742222710901,2.41804,1910.1,1910.0,3.2078]
[1742222711102,2.41804,1910.1,1909.8,6.0]
[1742222711103,1.04725,1909.9,1909.8,6.0]
[1742222711907,41.84725,1909.9,1909.8,6.0]
[1742222712211,43.27725,1909.9,1909.8,6.0]
[1742222712408,1.04716,1910.1,1910.0,1.0472]
[1742222712611,2.47716,1910.1,1909.9,1.70483]
[1742222712808,2.47716,1910.1,1910.0,1.3623]
[1742222713014,43.27716,1910.1,1910.0,1.3623]
[1742222713212,1.0472,1910.0,1909.9,0.6576]
[1742222713510,1.43,1910.0,1909.9,1.70485]
[1742222713709,1.43,1910.0,1909.9,3.06715]
[1742222713911,2.61718,1910.7,1909.9,2.0199]
[1742222714106,2.47704,1910.3,1910.1,1.0471]
[1742222714306,1.04709,1910.2,1910.0,4.25496]
[1742222714502,2.47714,1910.1,1910.0,2.4095]
[1742222714705,1.43,1910.1,1910.0,5.6173]
[1742222714904,1.43,1910.1,1909.9,0.6576]
[1742222715114,1.43,1910.1,1909.8,4.5701]
[1742222715315,1.43,1910.1,1909.8,5.6174]
[1742222715509,1.04722,1910.0,1909.8,5.6174]
[1742222715705,1.4012,1909.9,1909.8,3.2078]
[1742222716007,2.44845,1909.9,1909.8,3.2078]
[1742222716213,1.04731,1909.8,1909.7,8.0466]
[1742222716412,2.44851,1909.8,1909.7,0.7183]
[1742222716614,1.04736,1909.7,1909.6,0.00786658]
[1742222716816,2.44856,1909.7,1909.6,0.00786658]
[1742222717019,6.90606,1909.7,1909.6,0.00786658]